fUSD/lending_fUSD_20251210
["ID","MTS","AMOUNT","RATE_DAILY","PERIOD"]
[398093798,1765363919287,-500.0,0.00017808,2]
[398093799,1765363919296,-500.0,0.00017808,2]
[398093800,1765363919308,-765.27,0.00017808,2]
[398093801,1765363919321,-516.6,0.00017808,2]
[398093802,1765363919330,-500.0,0.00017808,2]
[398093803,1765363919339,-951.41,0.00017808,2]
[398093804,1765363919348,-679.67,0.00017808,2]
[398093805,1765363919357,-500.0,0.00017808,2]
[398093806,1765363919366,-718.05,0.00017808,2]
[398093807,1765363919375,-729.92,0.00017808,2]
[398093808,1765363919384,-500.0,0.00017808,2]
[398093809,1765363919393,-531.49,0.00017808,2]
[398093810,1765363919403,-500.0,0.00017808,2]
[398093811,1765363919412,-500.0,0.00017808,2]
[398093812,1765363919421,-503.74,0.00017808,2]
[398093813,1765363919430,-641.54,0.00017808,2]
[398093814,1765363919439,-1067.97,0.00017808,2]
[398093815,1765363919449,-539.19,0.00017808,2]
[398093816,1765363919458,-500.0,0.00017808,2]
[398093817,1765363919467,-2594.14,0.00017808,2]
[398093818,1765363919476,-500.0,0.00017808,2]
[398093819,1765363919485,-500.0,0.00017808,2]
[398093820,1765363919494,-500.0,0.00017808,2]
[398093821,1765363919503,-545.18,0.00017808,2]
[398093822,1765363919513,-616.40523249,0.00017808,2]
[398093823,1765363919522,-1366.9,0.00017808,2]
[398093824,1765363919531,-780.91,0.00017808,2]
[398093825,1765363919540,-904.37,0.00017808,2]
[398093826,1765363919549,-500.0,0.00017808,2]
[398093827,1765363919558,-1011.3,0.00017808,2]
[398093828,1765363919567,-1977.85,0.00017808,2]
[398093829,1765363919576,-674.04,0.00017808,2]
[398093830,1765363919588,-530.92,0.00017808,2]
[398093831,1765363919597,-515.73,0.00017808,2]
[398093832,1765363919607,-500.0,0.00017808,2]
[398093833,1765363919619,-500.0,0.00017808,2]
[398093834,1765363919628,-618.95,0.00017808,2]
[398093835,1765363919638,-746.65,0.00017808,2]
[398093836,1765363919648,-442.28002764,0.00017808,2]
[398093837,1765363919659,-500.0,0.00017808,2]
[398093838,1765363919669,-500.0,0.00017808,2]
[398093839,1765363919679,-562.39,0.00017808,2]
[398093840,1765363919688,-514.85,0.00017808,2]
[398093841,1765363919699,-500.0,0.00017808,2]
[398093842,1765363919708,-594.84,0.00017808,2]
[398093843,1765363919717,-2704.59,0.00017808,2]
[398093844,1765363919727,-1311.95,0.00017808,2]
[398093845,1765363919736,-672.92,0.00017808,2]
[398093846,1765363919746,-500.0,0.00017808,2]
[398093847,1765363919755,-500.0,0.00017808,2]
[398093848,1765363919766,-500.0,0.00017808,2]
[398093849,1765363919775,-536.09,0.00017808,2]
[398093850,1765363919784,-636.09,0.00017808,2]
[398093851,1765363919793,-500.0,0.00017808,2]
[398093852,1765363919802,-518.62,0.00017808,2]
[398093853,1765363919812,-2690.76,0.00017808,2]
[398093854,1765363919821,-539.25,0.00017808,2]
[398093855,1765363919831,-500.0,0.00017808,2]
[398093856,1765363919840,-669.46,0.00017808,2]
[398093857,1765363919849,-500.0,0.00017808,2]
[398093858,1765363919858,-366.58650995,0.00017808,2]
[398093859,1765363919867,-500.0,0.00017808,2]
[398093860,1765363919877,-500.0,0.00017808,2]
[398093861,1765363919886,-522.23,0.00017808,2]
[398093862,1765363919896,-633.04,0.00017808,2]
[398093863,1765363919906,-500.0,0.00017808,2]
[398093864,1765363919915,-854.51,0.00017808,2]
[398093865,1765363919924,-600.0,0.00017808,2]
[398093866,1765363919934,-564.0,0.00017808,2]
[398093867,1765363919943,-1097.0,0.00017868,2]
[398093868,1765363919953,-500.0,0.00017873,2]
[398093869,1765363919962,-559.60598548,0.00017873,2]
[398093870,1765363919973,-500.0,0.00017873,2]
[398093871,1765363919986,-500.0,0.00017873,2]
[398093872,1765363919996,-500.0,0.00017873,2]
[398093873,1765363920006,-500.0,0.00017873,2]
[398093874,1765363920017,-500.0,0.00017873,2]
[398093875,1765363920027,-500.0,0.00017873,2]
[398093876,1765363920037,-501.91287321,0.00017873,2]
[398093877,1765363920047,-500.0,0.00017873,2]
[398093878,1765363920060,-500.53642484,0.00017873,2]
[398093879,1765363920070,-172.21448504,0.00017873,2]
[398093880,1765363920080,-500.55361431,0.00017873,2]
[398093881,1765363920089,-500.0,0.00017873,2]
[398093882,1765363920098,-500.0,0.00017873,2]
[398093883,1765363920108,-535.3601164,0.00017873,2]
[398093884,1765363920117,-500.0,0.00017873,2]
[398093885,1765363920127,-250.15535236,0.00017873,2]
[398093886,1765363920137,-501.33603511,0.00017873,2]
[398093887,1765363920147,-500.73221299,0.00017873,2]
[398093888,1765363920156,-500.0,0.00017873,2]
[398093889,1765363920166,-314.97181083,0.00017873,2]
[398093890,1765363920175,-515.09341806,0.00017873,2]
[398093891,1765363920184,-500.0,0.00017873,2]
[398093892,1765363920204,-500.0,0.00017873,2]
[398093893,1765363920218,-500.0,0.00017873,2]
[398093894,1765363920227,-500.0,0.00017873,2]
[398093895,1765363920237,-1144.88478896,0.000179,2]
[398093896,1765363920246,-25000.0,0.000179,3]
[398093897,1765363920254,-174.72526909,0.000179,2]
[398093898,1765363920266,-195.1772435,0.000179,2]
[398093899,1765363920275,-1402.55574785,0.000179,2]
[398093900,1765363920284,-154.87,0.00017929,2]
[398093901,1765363920294,-1301.0,0.0001793,2]
[398093902,1765363920303,-500.0,0.00017945,2]
[398093903,1765363920312,-504.3314165,0.00017973,2]
[398093904,1765363920321,-500.0,0.00017973,2]
[398093905,1765363920330,-500.0,0.00017973,2]
[398093906,1765363920339,-150.0,0.00017973,2]
[398093907,1765363920348,-500.0,0.00017973,2]
[398093908,1765363920356,-500.0,0.00017973,2]
[398093909,1765363920365,-604.41751685,0.00017973,2]
[398093910,1765363920374,-500.0,0.00017973,2]
[398093911,1765363920383,-568.97286204,0.00017973,2]
[398093912,1765363920391,-500.0,0.00017973,2]
[398093913,1765363920400,-500.0,0.00017973,2]
[398093914,1765363920409,-500.0,0.00017973,2]
[398093915,1765363920418,-500.0,0.00017973,2]
[398093916,1765363920427,-503.74107312,0.00017973,2]
[398093917,1765363920436,-500.0,0.00017973,2]
[398093918,1765363920445,-189.68358142,0.00017973,2]
[398093919,1765363920454,-550.29083471,0.00017973,2]
[398093920,1765363920463,-332.72286695,0.00017973,2]
[398093921,1765363920472,-501.9789671,0.00017973,2]
[398093922,1765363920481,-503.38536723,0.00017973,2]
[398093923,1765363920490,-500.0,0.00017973,2]
[398093924,1765363920499,-500.0,0.00017973,2]
[398093925,1765363920508,-504.1898656,0.00017973,2]
[398093926,1765363920518,-500.0,0.00017973,2]
[398093927,1765363920527,-500.0,0.00017973,2]
[398093928,1765363920536,-587.47558664,0.00017973,2]
[398093929,1765363920546,-500.0,0.00017973,2]
[398093930,1765363920555,-502.23219112,0.00017973,2]
[398093931,1765363920563,-504.46338562,0.00017973,2]
[398093932,1765363920572,-181.19034863,0.00017973,2]
[398093933,1765363920582,-500.0,0.00017973,2]
[398093934,1765363920591,-500.0,0.00017973,2]
[398093935,1765363920600,-500.0,0.00017973,2]
[398093936,1765363920609,-576.59940867,0.00017973,2]
[398093937,1765363920618,-563.82504521,0.00017973,2]
[398093938,1765363920627,-500.0,0.00017973,2]
[398093939,1765363920636,-500.0,0.00017973,2]
[398093940,1765363920645,-500.0,0.00017973,2]
[398093941,1765363920655,-500.0,0.00017973,2]
[398093942,1765363920664,-500.0,0.00017973,2]
[398093943,1765363920673,-500.0,0.00017973,2]
[398093944,1765363920684,-500.0,0.00017973,2]
[398093945,1765363920693,-500.0,0.00017973,2]
[398093946,1765363920702,-515.27622999,0.00017973,2]
[398093947,1765363920711,-500.0,0.00017973,2]
[398093948,1765363920720,-500.0,0.00017973,2]
[398093949,1765363920729,-500.0,0.00017973,2]
[398093950,1765363920738,-500.0,0.00017973,2]
[398093951,1765363920747,-500.0,0.00017973,2]
[398093952,1765363920757,-2001.62,0.00017974,2]
[398093953,1765363920766,-44848.02194926,0.0001798,2]
[398093954,1765363920775,-12784.59833884,0.0001799,2]
[398093955,1765363920784,-1000.0,0.0001799,2]
[398093956,1765363920793,-2000.0,0.00017996,2]
[398093957,1765363920803,-300.0,0.00017999,2]
[398093958,1765363920812,-300.0,0.00017999,2]
[398093959,1765363920821,-24587.94627274,0.00018,2]
[398093960,1765363920831,-43070.70382964,0.00018,2]
[398093961,1765363920840,-150290.26879055,0.00018,3]
[398093962,1765363920998,-13500.0,0.00018,6]
[398093963,1765363921007,-8180889.223781,0.00018,2]
[398093964,1765363921017,-1983313.69564386,0.00018,2]
[398093965,1765363921026,-500461.51389892,0.00018,2]
[398093966,1765363921036,-13305623.6582288,0.00018,2]
[398093967,1765363921047,-1705791.79685832,0.00018,2]
[398093968,1765363921056,-326051.37865214,0.00018,2]
[398093969,1765363921065,-160.26396059,0.00018,2]
[398093970,1765363921074,-1179258.38107273,0.00018,2]
[398093971,1765363921083,-1170526.72401467,0.00018,2]
[398093972,1765363921092,-2713825.06825201,0.00018,2]
[398093973,1765363921100,-418815.55526807,0.00018,2]
[398093974,1765363921113,-945877.11401943,0.00018,2]
[398093975,1765363921122,-345991.13620701,0.00018,2]
[398093976,1765363921131,-294725.42901652,0.00018,2]
[398093977,1765363921140,-334281.81290426,0.00018,2]
[398093978,1765363921148,-1975269.06786863,0.00018,2]
[398093979,1765363921157,-8569.82933319,0.00018,2]
[398093980,1765363921167,-55115.52662095,0.00018,2]
[398093981,1765363921175,-1184.3433184,0.00018,2]
[398093982,1765363921184,-603.4,0.00018,2]
[398093983,1765363921193,-584.48588653,0.00018,5]
[398093984,1765363921202,-200.0,0.00018,2]
[398093985,1765363921212,-500.0,0.00018,2]
[398093986,1765363921221,-500.0,0.00018001,2]
[398093987,1765363921230,-639.058748,0.00018002,2]
[398093988,1765363921239,-1000.0,0.00018008,7]
[398093989,1765363921248,-1999.99,0.00018023,2]
[398093990,1765363921257,-500.0,0.00018082,2]
[398093991,1765363921267,-500.0,0.00018082,2]
[398093992,1765363921275,-500.0,0.00018082,2]
[398093993,1765363921284,-947.85,0.00018082,2]
[398093994,1765363921294,-500.0,0.00018082,2]
[398093995,1765363921303,-500.0,0.00018082,2]
[398093996,1765363921313,-587.0,0.00018082,2]
[398093997,1765363921324,-500.0,0.00018082,2]
[398093998,1765363921334,-500.0,0.00018082,2]
[398093999,1765363921345,-500.0,0.00018082,2]
[398094000,1765363921356,-473.18528798,0.00018082,2]
[398094001,1765363921366,-501.33,0.00018082,2]
[398094002,1765363921376,-576.82,0.00018082,2]
[398094003,1765363921387,-628.28537793,0.00018082,2]
[398094004,1765363921396,-532.94,0.00018082,2]
[398094005,1765363921406,-526.76,0.00018082,2]
[398094006,1765363921416,-685.62,0.00018082,2]
[398094007,1765363921428,-500.0,0.00018082,2]
[398094008,1765363921439,-500.0,0.00018082,2]
[398094009,1765363921449,-778.96,0.00018082,2]
[398094010,1765363921458,-500.0,0.00018082,2]
[398094011,1765363921467,-594.25,0.00018082,2]
[398094012,1765363921476,-500.0,0.00018082,2]
[398094013,1765363921486,-695.24,0.00018082,2]
[398094014,1765363921495,-500.0,0.00018082,2]
[398094015,1765363921504,-300.0,0.00018082,2]
[398094016,1765363921513,-571.54,0.00018082,2]
[398094017,1765363921522,-500.0,0.00018082,2]
[398094018,1765363921531,-500.0,0.00018082,2]
[398094019,1765363921540,-500.0,0.00018082,2]
[398094020,1765363921549,-500.0,0.00018082,2]
[398094021,1765363921558,-500.0,0.00018082,2]
[398094022,1765363921567,-537.71,0.00018082,2]
[398094023,1765363921576,-526.55,0.00018082,2]
[398094024,1765363921585,-622.54,0.00018082,2]
[398094025,1765363921595,-500.0,0.00018082,2]
[398094026,1765363921604,-501.73704964,0.00018082,2]
[398094027,1765363921613,-569.43,0.00018082,2]
[398094028,1765363921622,-500.0,0.00018082,2]
[398094029,1765363921632,-500.0,0.00018082,2]
[398094030,1765363921643,-614.97,0.00018082,2]
[398094031,1765363921653,-500.0,0.00018082,2]
[398094032,1765363921664,-500.0,0.00018082,2]
[398094033,1765363921675,-500.0,0.00018082,2]
[398094034,1765363921684,-521.75,0.00018082,2]
[398094035,1765363921694,-691.35,0.00018082,2]
[398094036,1765363921705,-500.0,0.00018082,2]
[398094037,1765363921716,-500.0,0.00018082,2]
[398094038,1765363921726,-831.61,0.00018082,2]
[398094039,1765363921736,-580.62,0.00018082,2]
[398094040,1765363921746,-607.34,0.00018082,2]
[398094041,1765363921756,-558.66,0.00018082,2]
[398094042,1765363921767,-500.0,0.00018082,2]
[398094043,1765363921777,-687.2,0.00018082,2]
[398094044,1765363921787,-697.92,0.00018082,2]
[398094045,1765363921797,-663.24,0.00018082,2]
[398094046,1765363921806,-500.0,0.00018082,2]
[398094047,1765363921815,-500.0,0.00018082,2]
[398094048,1765363921826,-632.86,0.00018082,2]
[398094049,1765363921837,-516.81,0.00018082,2]
[398094050,1765363921847,-528.53,0.00018082,2]
[398094051,1765363921858,-588.94,0.00018082,2]
[398094052,1765363921867,-575.19,0.00018082,2]
[398094053,1765363921877,-550.51,0.00018082,2]
[398094054,1765363921886,-520.64,0.00018082,2]
[398094055,1765363921896,-1386.52,0.00018082,2]
[398094056,1765363921907,-500.0,0.00018082,2]
[398094057,1765363921916,-626.72,0.00018082,2]
[398094058,1765363921925,-540.35,0.00018082,2]
[398094059,1765363921935,-500.0,0.00018082,2]
[398094060,1765363921945,-500.0,0.00018082,2]
[398094061,1765363921955,-500.0,0.00018082,2]
[398094062,1765363921965,-1096.94,0.00018082,2]
[398094063,1765363921977,-547.45,0.00018082,2]
[398094064,1765363921989,-1026.31,0.00018082,2]
[398094065,1765363921999,-500.0,0.00018082,2]
[398094066,1765363922009,-500.0,0.00018082,2]
[398094067,1765363922020,-500.0,0.00018082,2]
[398094068,1765363922030,-851.24,0.00018082,2]
[398094069,1765363922039,-504.48,0.00018082,2]
[398094070,1765363922050,-500.0,0.00018082,2]
[398094071,1765363922061,-522.11,0.00018082,2]
[398094072,1765363922070,-610.27,0.00018082,2]
[398094073,1765363922079,-687.03,0.00018082,2]
[398094074,1765363922089,-500.0,0.00018082,2]
[398094075,1765363922098,-500.0,0.00018082,2]
[398094076,1765363922108,-500.0,0.00018082,2]
[398094077,1765363922117,-659.53,0.00018082,2]
[398094078,1765363922126,-1423.99,0.00018082,2]
[398094079,1765363922136,-605.66,0.00018082,2]
[398094080,1765363922145,-535.23,0.00018082,2]
[398094081,1765363922154,-500.0,0.00018082,2]
[398094082,1765363922164,-490.31534986,0.00018082,2]
[398094083,1765363922173,-943.64,0.00018082,2]
[398094084,1765363922183,-605.73,0.00018082,2]
[398094085,1765363922193,-157.0,0.00018082,2]
[398094086,1765363922202,-694.43,0.00018082,2]
[398094087,1765363922212,-2000.0,0.00018082,2]
[398094088,1765363922221,-534.57,0.00018082,2]
[398094089,1765363922230,-500.0,0.00018082,2]
[398094090,1765363922240,-637.14,0.00018082,2]
[398094091,1765363922249,-500.0,0.00018082,2]
[398094092,1765363922259,-500.0,0.00018082,2]
[398094093,1765363922268,-500.0,0.00018082,2]
[398094094,1765363922278,-500.0,0.00018082,2]
[398094095,1765363922287,-1035.09,0.00018082,2]
[398094096,1765363922296,-500.0,0.00018082,2]
[398094097,1765363922305,-638.9,0.00018082,2]
[398094098,1765363922314,-590.56,0.00018082,2]
[398094099,1765363922323,-500.0,0.00018082,2]
[398094100,1765363922332,-823.36,0.00018082,2]
[398094101,1765363922341,-610.31,0.00018082,2]
[398094102,1765363922350,-500.0,0.00018082,2]
[398094103,1765363922359,-620.79,0.00018082,2]
[398094104,1765363922368,-888.67,0.00018082,2]
[398094105,1765363922378,-500.0,0.00018082,2]
[398094106,1765363922387,-500.0,0.00018082,2]
[398094107,1765363922396,-500.0,0.00018082,2]
[398094108,1765363922405,-601.0,0.00018082,2]
[398094109,1765363922414,-500.0,0.00018082,2]
[398094110,1765363922424,-619.05,0.00018082,2]
[398094111,1765363922433,-500.0,0.00018082,2]
[398094112,1765363922442,-718.66,0.00018082,2]
[398094113,1765363922452,-522.38,0.00018082,2]
[398094114,1765363922462,-575.76,0.00018082,2]
[398094115,1765363922472,-528.5,0.00018082,2]
[398094116,1765363922481,-500.0,0.00018082,2]
[398094117,1765363922491,-500.0,0.00018082,2]
[398094118,1765363922501,-500.0,0.00018082,2]
[398094119,1765363922511,-500.0,0.00018082,2]
[398094120,1765363922520,-582.05,0.00018082,2]
[398094121,1765363922530,-500.0,0.00018082,2]
[398094122,1765363922539,-1023.47,0.00018082,2]
[398094123,1765363922550,-500.0,0.00018082,2]
[398094124,1765363922560,-2989.18,0.00018082,2]
[398094125,1765363922570,-555.46,0.00018082,2]
[398094126,1765363922580,-500.0,0.00018082,2]
[398094127,1765363922592,-480.15665987,0.00018082,2]
[398094128,1765363922603,-1304.2,0.00018082,2]
[398094129,1765363922612,-729.87,0.00018082,2]
[398094130,1765363922621,-2869.58,0.00018082,2]
[398094131,1765363922632,-500.0,0.00018082,2]
[398094132,1765363922640,-501.94,0.00018082,2]
[398094133,1765363922650,-500.0,0.00018082,2]
[398094134,1765363922659,-658.56,0.00018082,2]
[398094135,1765363922668,-500.0,0.00018082,2]
[398094136,1765363922678,-548.02,0.00018082,2]
[398094137,1765363922687,-507.78949564,0.00018082,2]
[398094138,1765363922696,-500.0,0.00018082,2]
[398094139,1765363922705,-500.0,0.00018082,2]
[398094140,1765363922713,-970.77,0.00018082,2]
[398094141,1765363922723,-1025.9,0.00018082,2]
[398094142,1765363922743,-540.25,0.00018082,2]
[398094143,1765363922763,-555.46,0.00018082,2]
[398094144,1765363922773,-832.02,0.00018082,2]
[398094145,1765363922783,-635.2,0.00018082,2]
[398094146,1765363922792,-500.0,0.00018082,2]
[398094147,1765363922803,-515.11,0.00018082,2]
[398094148,1765363922812,-557.58,0.00018082,2]
[398094149,1765363922823,-695.06,0.00018082,2]
[398094150,1765363922833,-520.93,0.00018082,2]
[398094151,1765363922843,-500.0,0.00018082,2]
[398094152,1765363922852,-762.87,0.00018082,2]
[398094153,1765363922862,-2138.7,0.00018082,2]
[398094154,1765363922872,-1364.77,0.00018082,2]
[398094155,1765363922883,-572.05,0.00018082,2]
[398094156,1765363922892,-500.0,0.00018082,2]
[398094157,1765363922902,-442.67744731,0.00018082,2]
[398094158,1765363922911,-765.27,0.00018082,2]
[398094159,1765363922920,-516.6,0.00018082,2]
[398094160,1765363922930,-500.0,0.00018082,2]
[398094161,1765363922940,-951.41,0.00018082,2]
[398094162,1765363922950,-679.67,0.00018082,2]
[398094163,1765363922961,-500.0,0.00018082,2]
[398094164,1765363922972,-718.05,0.00018082,2]
[398094165,1765363922985,-729.92,0.00018082,2]
[398094166,1765363922996,-216.71149749,0.00018082,2]
[398094167,1765363923006,-531.49,0.00018082,2]
[398094168,1765363923015,-500.0,0.00018082,2]
[398094169,1765363923026,-500.0,0.00018082,2]
[398094170,1765363923035,-503.74,0.00018082,2]
[398094171,1765363923045,-641.54,0.00018082,2]
[398094172,1765363923056,-1067.97,0.00018082,2]
[398094173,1765363923065,-539.19,0.00018082,2]
[398094174,1765363923075,-414.52378854,0.00018082,2]
[398094175,1765363923084,-2594.14,0.00018082,2]
[398094176,1765363923093,-500.0,0.00018082,2]
[398094177,1765363923101,-500.0,0.00018082,2]
[398094178,1765363923110,-500.0,0.00018082,2]
[398094179,1765363923119,-545.18,0.00018082,2]
[398094180,1765363923128,-1366.9,0.00018082,2]
[398094181,1765363923138,-780.91,0.00018082,2]
[398094182,1765363923146,-904.37,0.00018082,2]
[398094183,1765363923155,-500.0,0.00018082,2]
[398094184,1765363923165,-1011.3,0.00018082,2]
[398094185,1765363923174,-1977.85,0.00018082,2]
[398094186,1765363923183,-674.04,0.00018082,2]
[398094187,1765363923192,-530.92,0.00018082,2]
[398094188,1765363923201,-515.73,0.00018082,2]
[398094189,1765363923211,-461.24988697,0.00018082,2]
[398094190,1765363923219,-500.0,0.00018082,2]
[398094191,1765363923228,-618.95,0.00018082,2]
[398094192,1765363923237,-746.65,0.00018082,2]
[398094193,1765363923246,-500.0,0.00018082,2]
[398094194,1765363923255,-500.0,0.00018082,2]
[398094195,1765363923266,-562.39,0.00018082,2]
[398094196,1765363923416,-514.85,0.00018082,2]
[398094197,1765363923426,-500.0,0.00018082,2]
[398094198,1765363923435,-594.84,0.00018082,2]
[398094199,1765363923445,-1311.95,0.00018082,2]
[398094200,1765363923457,-2704.59,0.00018082,2]
[398094201,1765363923467,-672.92,0.00018082,2]
[398094202,1765363923477,-500.0,0.00018082,2]
[398094203,1765363923489,-500.0,0.00018082,2]
[398094204,1765363923498,-500.0,0.00018082,2]
[398094205,1765363923507,-536.09,0.00018082,2]
[398094206,1765363923517,-636.09,0.00018082,2]
[398094207,1765363923526,-500.0,0.00018082,2]
[398094208,1765363923536,-518.62,0.00018082,2]
[398094209,1765363923546,-2690.76,0.00018082,2]
[398094210,1765363923556,-539.25,0.00018082,2]
[398094211,1765363923566,-500.0,0.00018082,2]
[398094212,1765363923579,-669.46,0.00018082,2]
[398094213,1765363923589,-500.0,0.00018082,2]
[398094214,1765363923599,-489.13363625,0.00018082,2]
[398094215,1765363923609,-522.23,0.00018082,2]
[398094216,1765363923619,-633.04,0.00018082,2]
[398094217,1765363923629,-500.0,0.00018082,2]
[398094218,1765363923639,-854.51,0.00018082,2]
[398094219,1765363923649,-600.0,0.00018082,2]
[398094220,1765363923658,-1000.0,0.00018082,2]
[398094221,1765363923669,-900.0,0.000181,3]
[398094222,1765363923678,-1769.91749167,0.000181,2]
[398094223,1765363923688,-1000.0,0.00018146,2]
[398094224,1765363923698,-259.12849491,0.00018219,2]
[398094225,1765363923708,-3000.0,0.00018282,7]
[398094226,1765363923717,-1900.0,0.00018282,7]
[398094227,1765363923727,-791.82,0.00018284,2]
[398094228,1765363923737,-1000.0,0.000183,10]
[398094229,1765363923746,-1000.0,0.000183,10]
[398094230,1765363923755,-500.0,0.00018356,2]
[398094231,1765363923764,-500.0,0.00018356,2]
[398094232,1765363923774,-947.85,0.00018356,2]
[398094233,1765363923783,-500.0,0.00018356,2]
[398094234,1765363923793,-500.0,0.00018356,2]
[398094235,1765363923802,-587.0,0.00018356,2]
[398094236,1765363923812,-500.0,0.00018356,2]
[398094237,1765363923821,-500.0,0.00018356,2]
[398094238,1765363923831,-500.0,0.00018356,2]
[398094239,1765363923841,-501.33,0.00018356,2]
[398094240,1765363923850,-576.82,0.00018356,2]
[398094241,1765363923860,-532.94,0.00018356,2]
[398094242,1765363923870,-526.76,0.00018356,2]
[398094243,1765363923880,-685.62,0.00018356,2]
[398094244,1765363923889,-500.0,0.00018356,2]
[398094245,1765363923898,-261.96221875,0.00018356,2]
[398094246,1765363923908,-778.96,0.00018356,2]
[398094247,1765363923917,-500.0,0.00018356,2]
[398094248,1765363923927,-594.25,0.00018356,2]
[398094249,1765363923937,-500.0,0.00018356,2]
[398094250,1765363923946,-695.24,0.00018356,2]
[398094251,1765363923956,-500.0,0.00018356,2]
[398094252,1765363923966,-300.0,0.00018356,2]
[398094253,1765363923978,-571.54,0.00018356,2]
[398094254,1765363923988,-500.0,0.00018356,2]
[398094255,1765363923998,-500.35139819,0.00018356,2]
[398094256,1765363924007,-500.0,0.00018356,2]
[398094257,1765363924016,-500.0,0.00018356,2]
[398094258,1765363924026,-500.0,0.00018356,2]
[398094259,1765363924036,-537.71,0.00018356,2]
[398094260,1765363924045,-526.55,0.00018356,2]
[398094261,1765363924056,-622.54,0.00018356,2]
[398094262,1765363924066,-500.0,0.00018356,2]
[398094263,1765363924076,-569.43,0.00018356,2]
[398094264,1765363924085,-315.58511223,0.00018356,2]
[398094265,1765363924095,-500.0,0.00018356,2]
[398094266,1765363924104,-614.97,0.00018356,2]
[398094267,1765363924114,-500.0,0.00018356,2]
[398094268,1765363924123,-177.52828513,0.00018356,2]
[398094269,1765363924133,-500.0,0.00018356,2]
[398094270,1765363924142,-521.75,0.00018356,2]
[398094271,1765363924152,-691.35,0.00018356,2]
[398094272,1765363924161,-500.0,0.00018356,2]
[398094273,1765363924171,-500.0,0.00018356,2]
[398094274,1765363924180,-831.61,0.00018356,2]
[398094275,1765363924191,-580.62,0.00018356,2]
[398094276,1765363924200,-607.34,0.00018356,2]
[398094277,1765363924209,-558.66,0.00018356,2]
[398094278,1765363924219,-500.0,0.00018356,2]
[398094279,1765363924228,-687.2,0.00018356,2]
[398094280,1765363924238,-697.92,0.00018356,2]
[398094281,1765363924246,-663.24,0.00018356,2]
[398094282,1765363924256,-500.0,0.00018356,2]
[398094283,1765363924265,-500.0,0.00018356,2]
[398094284,1765363924274,-632.86,0.00018356,2]
[398094285,1765363924284,-516.81,0.00018356,2]
[398094286,1765363924293,-528.53,0.00018356,2]
[398094287,1765363924303,-588.94,0.00018356,2]
[398094288,1765363924313,-575.19,0.00018356,2]
[398094289,1765363924323,-550.51,0.00018356,2]
[398094290,1765363924332,-520.64,0.00018356,2]
[398094291,1765363924342,-1386.52,0.00018356,2]
[398094292,1765363924351,-397.21038482,0.00018356,2]
[398094293,1765363924362,-626.72,0.00018356,2]
[398094294,1765363924372,-540.35,0.00018356,2]
[398094295,1765363924382,-500.0,0.00018356,2]
[398094296,1765363924391,-500.0,0.00018356,2]
[398094297,1765363924400,-500.0,0.00018356,2]